fUSD/lending_fUSD_20241106
["ID","MTS","AMOUNT","RATE_DAILY","PERIOD"]
[341495021,1730922671548,-1114.912,0.0003,2]
[341495022,1730922671557,-9637.75992254,0.0003,14]
[341495023,1730922671567,-15187.52351674,0.0003,15]
[341495024,1730922671576,-5566.50563877,0.0003,2]
[341495025,1730922671585,-2000.0,0.0003,14]
[341495026,1730922671595,-3105.54989319,0.0003,120]
[341495027,1730922671605,-274.3446133,0.0003,30]
[341495028,1730922671614,-151.0,0.0003,7]
[341495029,1730922671623,-345.46825,0.0003,2]
[341495030,1730922671632,-165.436283,0.0003,7]
[341495031,1730922671641,-165.436283,0.0003,7]
[341495032,1730922671650,-151.0,0.0003,7]
[341495033,1730922671660,-151.0,0.0003,7]
[341495034,1730922671669,-306.73825,0.0003,2]
[341495035,1730922671679,-193.6755,0.0003,2]
[341495036,1730922671688,-689.48778567,0.0003,2]
[341495037,1730922671697,-1364.39,0.0003,7]
[341495038,1730922671707,-151.0,0.0003,120]
[341495039,1730922671716,-2320.1778488,0.0003,3]
[341495040,1730922671727,-151.0,0.0003,7]
[341495041,1730922671736,-641.332644,0.0003,7]
[341495042,1730922671745,-641.332644,0.0003,7]
[341495043,1730922671755,-1955.71,0.000301,7]
[341495044,1730922671765,-467.8,0.00030127,30]
[341495045,1730922671774,-224.051724,0.00030136,7]
[341495046,1730922671784,-151.0,0.00030136,7]
[341495047,1730922671794,-151.0,0.00030136,7]
[341495048,1730922671803,-424.43368816,0.00030136,2]
[341495049,1730922671812,-500.0,0.00030136,2]
[341495050,1730922671821,-340.89016301,0.00030136,2]
[341495051,1730922671830,-441.53105783,0.00030136,2]
[341495052,1730922671840,-747.29,0.00030136,2]
[341495053,1730922671849,-500.0,0.00030136,2]
[341495054,1730922671858,-500.0,0.00030136,2]
[341495055,1730922671867,-524.69,0.00030136,2]
[341495056,1730922671876,-500.0,0.00030136,2]
[341495057,1730922671885,-500.0,0.00030136,2]
[341495058,1730922671894,-500.0,0.00030136,2]
[341495059,1730922671904,-1051.01,0.00030136,2]
[341495060,1730922671913,-500.0,0.00030136,2]
[341495061,1730922671921,-851.78,0.00030136,2]
[341495062,1730922671930,-500.0,0.00030136,2]
[341495063,1730922671939,-500.0,0.00030136,2]
[341495064,1730922671948,-500.0,0.00030136,2]
[341495065,1730922671957,-572.0,0.00030136,2]
[341495066,1730922671966,-500.0,0.00030136,2]
[341495067,1730922671976,-500.0,0.00030136,2]
[341495068,1730922671986,-500.0,0.00030136,2]
[341495069,1730922671995,-659.87,0.00030136,2]
[341495070,1730922672004,-1047.2,0.00030136,2]
[341495071,1730922672013,-500.0,0.00030136,2]
[341495072,1730922672022,-500.0,0.00030136,2]
[341495073,1730922672031,-933.13,0.00030136,2]
[341495074,1730922672041,-502.97,0.00030136,2]
[341495075,1730922672050,-500.0,0.00030136,2]
[341495076,1730922672059,-500.0,0.00030136,2]
[341495077,1730922672068,-500.0,0.00030136,2]
[341495078,1730922672077,-500.0,0.00030136,2]
[341495079,1730922672086,-500.0,0.00030136,2]
[341495080,1730922672095,-663.55,0.00030136,2]
[341495081,1730922672104,-500.0,0.00030136,2]
[341495082,1730922672113,-500.0,0.00030136,2]
[341495083,1730922672123,-500.0,0.00030136,2]
[341495084,1730922672132,-520.41971729,0.00030136,2]
[341495085,1730922672141,-500.0,0.00030136,2]
[341495086,1730922672150,-718.46,0.00030136,2]
[341495087,1730922672159,-500.0,0.00030136,2]
[341495088,1730922672168,-549.51,0.00030136,2]
[341495089,1730922672178,-151.0,0.00030136,7]
[341495090,1730922672187,-500.0,0.00030136,2]
[341495091,1730922672196,-151.0,0.00030136,7]
[341495092,1730922672205,-225.068996,0.00030136,7]
[341495093,1730922672283,-500.0,0.00030136,2]
[341495094,1730922672293,-620.75,0.00030136,2]
[341495095,1730922672303,-500.0,0.00030136,2]
[341495096,1730922672313,-721.78,0.00030136,2]
[341495097,1730922672322,-500.0,0.00030136,2]
[341495098,1730922672332,-578.58,0.00030136,2]
[341495099,1730922672343,-1169.27,0.00030136,2]
[341495100,1730922672352,-500.0,0.00030136,2]
[341495101,1730922672362,-626.9,0.00030136,2]
[341495102,1730922672370,-500.0,0.00030136,2]
[341495103,1730922672380,-151.0,0.00030136,7]
[341495104,1730922672392,-500.0,0.00030136,2]
[341495105,1730922672402,-151.0,0.00030136,7]
[341495106,1730922672411,-528.97,0.00030136,2]
[341495107,1730922672420,-500.0,0.00030136,2]
[341495108,1730922672429,-588.31,0.00030136,2]
[341495109,1730922672438,-500.0,0.00030136,2]
[341495110,1730922672447,-992.82,0.00030136,2]
[341495111,1730922672457,-500.0,0.00030136,2]
[341495112,1730922672466,-500.0,0.00030136,2]
[341495113,1730922672482,-500.0,0.00030136,2]
[341495114,1730922672491,-500.0,0.00030136,2]
[341495115,1730922672501,-949.12,0.00030136,2]
[341495116,1730922672510,-200.446961,0.00030136,7]
[341495117,1730922672519,-824.345403,0.00030136,7]
[341495118,1730922672529,-200.446961,0.00030136,7]
[341495119,1730922672539,-500.0,0.00030136,2]
[341495120,1730922672548,-824.345403,0.00030136,7]
[341495121,1730922672557,-628.45,0.00030136,2]
[341495122,1730922672567,-892.79,0.00030136,2]
[341495123,1730922672576,-574.4,0.00030136,2]
[341495124,1730922672586,-500.0,0.00030136,2]
[341495125,1730922672595,-500.0,0.00030136,2]
[341495126,1730922672605,-500.0,0.00030136,2]
[341495127,1730922672615,-641.4,0.00030136,2]
[341495128,1730922672624,-1259.56,0.00030136,2]
[341495129,1730922672633,-500.0,0.00030136,2]
[341495130,1730922672642,-500.0,0.00030136,2]
[341495131,1730922672651,-500.0,0.00030136,2]
[341495132,1730922672660,-941.09,0.00030136,2]
[341495133,1730922672669,-859.1,0.00030136,2]
[341495134,1730922672678,-500.0,0.00030136,2]
[341495135,1730922672687,-500.0,0.00030136,2]
[341495136,1730922672696,-1523.21,0.00030136,2]
[341495137,1730922672705,-616.69,0.00030136,2]
[341495138,1730922672714,-536.1,0.00030136,2]
[341495139,1730922672724,-530.09,0.00030136,2]
[341495140,1730922672733,-1724.32,0.00030136,2]
[341495141,1730922672743,-791.56,0.00030136,2]
[341495142,1730922672752,-1306.48,0.00030136,2]
[341495143,1730922672761,-500.0,0.00030136,2]
[341495144,1730922672770,-989.59,0.00030136,2]
[341495145,1730922672779,-508.25,0.00030136,2]
[341495146,1730922672788,-500.0,0.00030136,2]
[341495147,1730922672797,-2159.33,0.00030136,2]
[341495148,1730922672806,-1683.35,0.00030136,2]
[341495149,1730922672815,-536.59,0.00030136,2]
[341495150,1730922672824,-1052.72,0.00030136,2]
[341495151,1730922672833,-500.0,0.00030136,2]
[341495152,1730922672842,-500.0,0.00030136,2]
[341495153,1730922672851,-500.0,0.00030136,2]
[341495154,1730922672860,-1358.49,0.00030136,2]
[341495155,1730922672869,-500.0,0.00030136,2]
[341495156,1730922672879,-500.0,0.00030136,2]
[341495157,1730922672888,-500.0,0.00030136,2]
[341495158,1730922672897,-1719.08,0.00030136,2]
[341495159,1730922672906,-500.0,0.00030136,2]
[341495160,1730922672916,-1081.12,0.00030136,2]
[341495161,1730922672926,-554.88,0.00030136,2]
[341495162,1730922672936,-608.63,0.00030136,2]
[341495163,1730922672948,-500.0,0.00030136,2]
[341495164,1730922672959,-500.0,0.00030136,2]
[341495165,1730922672969,-500.0,0.00030136,2]
[341495166,1730922672985,-655.47,0.00030136,2]
[341495167,1730922672994,-576.36,0.00030136,2]
[341495168,1730922673003,-641.95,0.00030136,2]
[341495169,1730922673012,-2127.75,0.00030136,2]
[341495170,1730922673022,-978.4,0.00030136,2]
[341495171,1730922673031,-565.93,0.00030136,2]
[341495172,1730922673043,-1670.33,0.00030136,2]
[341495173,1730922673052,-665.68,0.00030136,2]
[341495174,1730922673062,-600.95122527,0.00030136,2]
[341495175,1730922673074,-500.0,0.00030136,2]
[341495176,1730922673086,-500.0,0.00030136,2]
[341495177,1730922673097,-1219.79,0.00030136,2]
[341495178,1730922673107,-500.0,0.00030136,2]
[341495179,1730922673118,-151.0,0.00030136,7]
[341495180,1730922673127,-1277.02,0.00030136,2]
[341495181,1730922673136,-1209.34,0.00030136,2]
[341495182,1730922673146,-538.64,0.00030136,2]
[341495183,1730922673155,-500.0,0.00030136,2]
[341495184,1730922673165,-500.0,0.00030136,2]
[341495185,1730922673173,-1000.12,0.00030136,2]
[341495186,1730922673183,-500.0,0.00030136,2]
[341495187,1730922673192,-500.0,0.00030136,2]
[341495188,1730922673202,-151.0,0.00030136,7]
[341495189,1730922673211,-802.32,0.00030136,2]
[341495190,1730922673220,-1976.19,0.00030136,2]
[341495191,1730922673230,-500.0,0.00030136,2]
[341495192,1730922673240,-500.0,0.00030136,2]
[341495193,1730922673249,-569.46,0.00030136,2]
[341495194,1730922673258,-617.92897573,0.00030136,2]
[341495195,1730922673267,-894.15,0.00030136,2]
[341495196,1730922673276,-500.0,0.00030136,2]
[341495197,1730922673286,-199.185492,0.00030136,7]
[341495198,1730922673296,-151.0,0.00030136,7]
[341495199,1730922673307,-155.378012,0.00030136,7]
[341495200,1730922673318,-155.378012,0.00030136,7]
[341495201,1730922673330,-293.793734,0.00030136,7]
[341495202,1730922673340,-293.793734,0.00030136,7]
[341495203,1730922673350,-178.825587,0.00030136,7]
[341495204,1730922673361,-178.825587,0.00030136,7]
[341495205,1730922673373,-151.0,0.00030136,7]
[341495206,1730922673385,-174.65,0.00030137,2]
[341495207,1730922673395,-11296.61990667,0.00030178,15]
[341495208,1730922673407,-824.163633,0.00030369,7]
[341495209,1730922673417,-824.163633,0.00030369,7]
[341495210,1730922673427,-151.0,0.00030369,7]
[341495211,1730922673438,-151.0,0.0003041,7]
[341495212,1730922673449,-500.0,0.0003041,2]
[341495213,1730922673459,-747.29,0.0003041,2]
[341495214,1730922673468,-165.436283,0.0003041,7]
[341495215,1730922673481,-500.0,0.0003041,2]
[341495216,1730922673491,-165.436283,0.0003041,7]
[341495217,1730922673500,-500.0,0.0003041,2]
[341495218,1730922673510,-524.69,0.0003041,2]
[341495219,1730922673520,-151.0,0.0003041,7]
[341495220,1730922673529,-500.0,0.0003041,2]
[341495221,1730922673539,-500.0,0.0003041,2]
[341495222,1730922673549,-500.0,0.0003041,2]
[341495223,1730922673558,-1051.01,0.0003041,2]
[341495224,1730922673567,-500.0,0.0003041,2]
[341495225,1730922673577,-851.78,0.0003041,2]
[341495226,1730922673586,-500.0,0.0003041,2]
[341495227,1730922673595,-500.0,0.0003041,2]
[341495228,1730922673604,-500.0,0.0003041,2]
[341495229,1730922673614,-572.0,0.0003041,2]
[341495230,1730922673623,-500.0,0.0003041,2]
[341495231,1730922673632,-500.0,0.0003041,2]
[341495232,1730922673641,-500.0,0.0003041,2]
[341495233,1730922673650,-659.87,0.0003041,2]
[341495234,1730922673659,-1047.2,0.0003041,2]
[341495235,1730922673668,-500.0,0.0003041,2]
[341495236,1730922673677,-500.0,0.0003041,2]
[341495237,1730922673686,-933.13,0.0003041,2]
[341495238,1730922673696,-502.97,0.0003041,2]
[341495239,1730922673706,-500.0,0.0003041,2]
[341495240,1730922673716,-500.0,0.0003041,2]
[341495241,1730922673727,-308.33707291,0.0003041,2]
[341495242,1730922673736,-527.35428358,0.0003041,2]
[341495243,1730922673746,-500.0,0.0003041,2]
[341495244,1730922673755,-663.55,0.0003041,2]
[341495245,1730922673765,-500.0,0.0003041,2]
[341495246,1730922673774,-467.71444726,0.0003041,2]
[341495247,1730922673784,-500.0,0.0003041,2]
[341495248,1730922673793,-500.0,0.0003041,2]
[341495249,1730922673803,-718.46,0.0003041,2]
[341495250,1730922673811,-500.0,0.0003041,2]
[341495251,1730922673821,-549.51,0.0003041,2]
[341495252,1730922673831,-500.0,0.0003041,2]
[341495253,1730922673840,-500.0,0.0003041,2]
[341495254,1730922673849,-620.75,0.0003041,2]
[341495255,1730922673859,-500.0,0.0003041,2]
[341495256,1730922673868,-721.78,0.0003041,2]
[341495257,1730922673877,-500.0,0.0003041,2]
[341495258,1730922673886,-578.58,0.0003041,2]
[341495259,1730922673896,-1169.27,0.0003041,2]
[341495260,1730922673905,-500.0,0.0003041,2]
[341495261,1730922673914,-626.9,0.0003041,2]
[341495262,1730922673923,-500.0,0.0003041,2]
[341495263,1730922673933,-500.0,0.0003041,2]
[341495264,1730922673942,-528.97,0.0003041,2]
[341495265,1730922673952,-500.0,0.0003041,2]
[341495266,1730922673961,-588.31,0.0003041,2]
[341495267,1730922673971,-500.0,0.0003041,2]
[341495268,1730922673981,-992.82,0.0003041,2]
[341495269,1730922673991,-502.89739865,0.0003041,2]
[341495270,1730922674000,-500.0,0.0003041,2]
[341495271,1730922674009,-500.0,0.0003041,2]
[341495272,1730922674019,-204.21390181,0.0003041,2]
[341495273,1730922674028,-949.12,0.0003041,2]
[341495274,1730922674038,-200.446961,0.0003041,7]
[341495275,1730922674050,-200.446961,0.0003041,7]
[341495276,1730922674063,-500.0,0.0003041,2]
[341495277,1730922674072,-628.45,0.0003041,2]
[341495278,1730922674082,-892.79,0.0003041,2]
[341495279,1730922674091,-574.4,0.0003041,2]
[341495280,1730922674100,-500.0,0.0003041,2]
[341495281,1730922674110,-500.0,0.0003041,2]
[341495282,1730922674120,-500.0,0.0003041,2]
[341495283,1730922674129,-641.4,0.0003041,2]
[341495284,1730922674140,-1259.56,0.0003041,2]
[341495285,1730922674150,-546.59499885,0.0003041,2]
[341495286,1730922674160,-500.0,0.0003041,2]
[341495287,1730922674169,-500.0,0.0003041,2]
[341495288,1730922674179,-941.09,0.0003041,2]
[341495289,1730922674189,-859.1,0.0003041,2]
[341495290,1730922674198,-500.0,0.0003041,2]
[341495291,1730922674207,-559.39,0.0003041,2]
[341495292,1730922674218,-1523.21,0.0003041,2]
[341495293,1730922674229,-616.69,0.0003041,2]
[341495294,1730922674239,-1000.0,0.0003041,30]
[341495295,1730922674248,-536.1,0.0003041,2]
[341495296,1730922674258,-530.09,0.0003041,2]
[341495297,1730922674267,-1724.32,0.0003041,2]
[341495298,1730922674277,-791.56,0.0003041,2]
[341495299,1730922674286,-1306.48,0.0003041,2]
[341495300,1730922674296,-500.0,0.0003041,2]
[341495301,1730922674305,-989.59,0.0003041,2]
[341495302,1730922674315,-508.25,0.0003041,2]
[341495303,1730922674325,-500.0,0.0003041,2]
[341495304,1730922674334,-2159.33,0.0003041,2]
[341495305,1730922674343,-1683.35,0.0003041,2]
[341495306,1730922674352,-536.59,0.0003041,2]
[341495307,1730922674361,-1052.72,0.0003041,2]
[341495308,1730922674371,-500.0,0.0003041,2]
[341495309,1730922674381,-500.0,0.0003041,2]
[341495310,1730922674391,-500.0,0.0003041,2]
[341495311,1730922674403,-1358.49,0.0003041,2]
[341495312,1730922674412,-500.0,0.0003041,2]
[341495313,1730922674422,-500.0,0.0003041,2]
[341495314,1730922674432,-1719.08,0.0003041,2]
[341495315,1730922674441,-500.0,0.0003041,2]
[341495316,1730922674450,-500.0,0.0003041,2]
[341495317,1730922674460,-1081.12,0.0003041,2]
[341495318,1730922674470,-554.88,0.0003041,2]
[341495319,1730922674481,-608.63,0.0003041,2]
[341495320,1730922674491,-500.0,0.0003041,2]
[341495321,1730922674500,-500.0,0.0003041,2]
[341495322,1730922674510,-599.69641233,0.0003041,2]
[341495323,1730922674519,-655.47,0.0003041,2]
[341495324,1730922674529,-576.36,0.0003041,2]
[341495325,1730922674539,-641.95,0.0003041,2]
[341495326,1730922674548,-2127.75,0.0003041,2]
[341495327,1730922674557,-978.4,0.0003041,2]
[341495328,1730922674568,-565.93,0.0003041,2]
[341495329,1730922674577,-1670.33,0.0003041,2]
[341495330,1730922674587,-665.68,0.0003041,2]
[341495331,1730922674596,-500.0,0.0003041,2]
[341495332,1730922674606,-514.48805467,0.0003041,2]
[341495333,1730922674615,-1219.79,0.0003041,2]
[341495334,1730922674625,-270.35835525,0.0003041,2]
[341495335,1730922674634,-151.0,0.0003041,7]
[341495336,1730922674643,-1277.02,0.0003041,2]
[341495337,1730922674652,-1209.34,0.0003041,2]
[341495338,1730922674662,-538.64,0.0003041,2]
[341495339,1730922674671,-500.0,0.0003041,2]
[341495340,1730922674680,-500.0,0.0003041,2]
[341495341,1730922674690,-1000.12,0.0003041,2]
[341495342,1730922674701,-573.44982395,0.0003041,2]
[341495343,1730922674710,-500.0,0.0003041,2]
[341495344,1730922674720,-151.0,0.0003041,7]
[341495345,1730922674730,-802.32,0.0003041,2]
[341495346,1730922674739,-1976.19,0.0003041,2]
[341495347,1730922674748,-500.0,0.0003041,2]
[341495348,1730922674757,-500.0,0.0003041,2]
[341495349,1730922674767,-569.46,0.0003041,2]
[341495350,1730922674776,-894.15,0.0003041,2]
[341495351,1730922674786,-500.0,0.0003041,2]
[341495352,1730922674795,-151.0,0.0003041,7]
[341495353,1730922674804,-155.378012,0.0003041,7]
[341495354,1730922674813,-155.37801,0.0003041,7]
[341495355,1730922674823,-151.0,0.0003041,7]
[341495356,1730922674832,-151.0,0.0003041,7]
[341495357,1730922674841,-293.793734,0.0003041,7]
[341495358,1730922674851,-293.793734,0.0003041,7]
[341495359,1730922674860,-178.825587,0.0003041,7]
[341495360,1730922674869,-178.825587,0.0003041,7]
[341495361,1730922674878,-151.0,0.0003041,7]
[341495362,1730922674887,-641.332644,0.0003041,7]
[341495363,1730922674896,-641.332644,0.0003041,7]
[341495364,1730922674905,-151.0,0.0003041,7]
[341495365,1730922674914,-1043.112019,0.0003041,7]
[341495366,1730922674923,-1043.112019,0.0003041,7]
[341495367,1730922674932,-151.0,0.0003041,7]
[341495368,1730922674941,-151.0,0.0003041,7]
[341495369,1730922674950,-151.0,0.0003041,7]
[341495370,1730922674959,-151.0,0.0003041,7]
[341495371,1730922674968,-151.0,0.0003041,7]
[341495372,1730922674979,-594.868439,0.0003041,7]
[341495373,1730922674988,-594.868439,0.0003041,7]
[341495374,1730922674998,-252.17299877,0.00030421,2]
[341495375,1730922675007,-166.95,0.00030463,2]
[341495376,1730922675017,-2754.0,0.000305,3]
[341495377,1730922675027,-166.55,0.00030505,2]
[341495378,1730922675036,-968.27213108,0.00030585,2]
[341495379,1730922675045,-151.813113,0.00030684,7]
[341495380,1730922675055,-151.0,0.00030684,7]
[341495381,1730922675064,-151.0,0.00030684,7]
[341495382,1730922675072,-500.0,0.00030684,2]
[341495383,1730922675081,-747.29,0.00030684,2]
[341495384,1730922675090,-165.436283,0.00030684,7]
[341495385,1730922675100,-500.0,0.00030684,2]
[341495386,1730922675109,-165.436283,0.00030684,7]
[341495387,1730922675119,-500.0,0.00030684,2]
[341495388,1730922675128,-524.69,0.00030684,2]
[341495389,1730922675137,-184.408783,0.00030684,7]
[341495390,1730922675147,-500.0,0.00030684,2]
[341495391,1730922675156,-500.0,0.00030684,2]
[341495392,1730922675166,-500.0,0.00030684,2]
[341495393,1730922675175,-1051.01,0.00030684,2]
[341495394,1730922675184,-500.0,0.00030684,2]
[341495395,1730922675194,-851.78,0.00030684,2]
[341495396,1730922675203,-500.0,0.00030684,2]
[341495397,1730922675213,-500.0,0.00030684,2]
[341495398,1730922675223,-500.0,0.00030684,2]
[341495399,1730922675233,-572.0,0.00030684,2]
[341495400,1730922675242,-500.0,0.00030684,2]
[341495401,1730922675251,-500.0,0.00030684,2]
[341495402,1730922675261,-500.0,0.00030684,2]
[341495403,1730922675270,-659.87,0.00030684,2]
[341495404,1730922675280,-1047.2,0.00030684,2]
[341495405,1730922675289,-500.0,0.00030684,2]
[341495406,1730922675298,-500.0,0.00030684,2]
[341495407,1730922675307,-933.13,0.00030684,2]
[341495408,1730922675317,-502.97,0.00030684,2]
[341495409,1730922675327,-500.0,0.00030684,2]
[341495410,1730922675336,-500.0,0.00030684,2]
[341495411,1730922675346,-500.0,0.00030684,2]
[341495412,1730922675355,-663.55,0.00030684,2]
[341495413,1730922675365,-466.61901546,0.00030684,2]
[341495414,1730922675374,-500.0,0.00030684,2]
[341495415,1730922675384,-500.0,0.00030684,2]
[341495416,1730922675394,-718.46,0.00030684,2]
[341495417,1730922675406,-500.0,0.00030684,2]
[341495418,1730922675415,-549.51,0.00030684,2]
[341495419,1730922675425,-151.0,0.00030684,7]
[341495420,1730922675435,-500.0,0.00030684,2]
[341495421,1730922675445,-151.0,0.00030684,7]
[341495422,1730922675454,-500.0,0.00030684,2]
[341495423,1730922675464,-620.75,0.00030684,2]
[341495424,1730922675474,-500.0,0.00030684,2]
[341495425,1730922675484,-721.78,0.00030684,2]
[341495426,1730922675494,-500.0,0.00030684,2]
[341495427,1730922675505,-578.58,0.00030684,2]
[341495428,1730922675514,-1169.27,0.00030684,2]
[341495429,1730922675523,-500.0,0.00030684,2]
[341495430,1730922675533,-626.9,0.00030684,2]
[341495431,1730922675543,-500.0,0.00030684,2]
[341495432,1730922675553,-264.724272,0.00030684,7]
[341495433,1730922675562,-389.45209827,0.00030684,2]
[341495434,1730922675571,-151.0,0.00030684,7]
[341495435,1730922675580,-528.97,0.00030684,2]
[341495436,1730922675590,-500.0,0.00030684,2]
[341495437,1730922675599,-588.31,0.00030684,2]
[341495438,1730922675609,-500.0,0.00030684,2]
[341495439,1730922675618,-992.82,0.00030684,2]
[341495440,1730922675627,-500.0,0.00030684,2]
[341495441,1730922675637,-500.0,0.00030684,2]
[341495442,1730922675647,-949.12,0.00030684,2]
[341495443,1730922675657,-200.446961,0.00030684,7]
[341495444,1730922675667,-824.345403,0.00030684,7]
[341495445,1730922675676,-200.446961,0.00030684,7]
[341495446,1730922675687,-500.0,0.00030684,2]
[341495447,1730922675697,-824.345403,0.00030684,7]
[341495448,1730922675708,-628.45,0.00030684,2]
[341495449,1730922675717,-892.79,0.00030684,2]
[341495450,1730922675728,-574.4,0.00030684,2]
[341495451,1730922675738,-424.13089783,0.00030684,2]
[341495452,1730922675747,-500.0,0.00030684,2]
[341495453,1730922675757,-500.0,0.00030684,2]
[341495454,1730922675766,-641.4,0.00030684,2]
[341495455,1730922675775,-1259.56,0.00030684,2]
[341495456,1730922675786,-500.0,0.00030684,2]
[341495457,1730922675795,-500.0,0.00030684,2]
[341495458,1730922675804,-941.09,0.00030684,2]
[341495459,1730922675813,-859.1,0.00030684,2]
[341495460,1730922675823,-500.0,0.00030684,2]
[341495461,1730922675833,-1523.21,0.00030684,2]
[341495462,1730922675844,-616.69,0.00030684,2]
[341495463,1730922675853,-536.1,0.00030684,2]
[341495464,1730922675862,-530.09,0.00030684,2]
[341495465,1730922675871,-1724.32,0.00030684,2]
[341495466,1730922675881,-791.56,0.00030684,2]
[341495467,1730922675890,-1306.48,0.00030684,2]
[341495468,1730922675898,-500.0,0.00030684,2]
[341495469,1730922675907,-989.59,0.00030684,2]
[341495470,1730922675917,-508.25,0.00030684,2]
[341495471,1730922675926,-500.0,0.00030684,2]
[341495472,1730922675936,-2159.33,0.00030684,2]
[341495473,1730922675946,-1683.35,0.00030684,2]
[341495474,1730922675955,-536.59,0.00030684,2]
[341495475,1730922675967,-1052.72,0.00030684,2]
[341495476,1730922675979,-500.0,0.00030684,2]
[341495477,1730922675989,-500.0,0.00030684,2]
[341495478,1730922675999,-500.0,0.00030684,2]
[341495479,1730922676008,-1358.49,0.00030684,2]
[341495480,1730922676019,-500.0,0.00030684,2]
[341495481,1730922676028,-500.0,0.00030684,2]
[341495482,1730922676038,-1719.08,0.00030684,2]
[341495483,1730922676047,-500.0,0.00030684,2]
[341495484,1730922676057,-500.0,0.00030684,2]
[341495485,1730922676067,-1081.12,0.00030684,2]
[341495486,1730922676076,-554.88,0.00030684,2]
[341495487,1730922676086,-608.63,0.00030684,2]
[341495488,1730922676095,-500.0,0.00030684,2]
[341495489,1730922676104,-507.49034858,0.00030684,2]
[341495490,1730922676114,-655.47,0.00030684,2]
[341495491,1730922676124,-576.36,0.00030684,2]
[341495492,1730922676133,-641.95,0.00030684,2]
[341495493,1730922676143,-2127.75,0.00030684,2]
[341495494,1730922676152,-978.4,0.00030684,2]
[341495495,1730922676162,-565.93,0.00030684,2]
[341495496,1730922676172,-1670.33,0.00030684,2]
[341495497,1730922676182,-665.68,0.00030684,2]
[341495498,1730922676193,-500.0,0.00030684,2]
[341495499,1730922676206,-1219.79,0.00030684,2]
[341495500,1730922676217,-151.0,0.00030684,7]
[341495501,1730922676232,-1209.34,0.00030684,2]
[341495502,1730922676243,-1277.02,0.00030684,2]
[341495503,1730922676253,-538.64,0.00030684,2]
[341495504,1730922676264,-500.0,0.00030684,2]
[341495505,1730922676274,-500.0,0.00030684,2]
[341495506,1730922676284,-1000.12,0.00030684,2]
[341495507,1730922676294,-500.0,0.00030684,2]
[341495508,1730922676305,-151.0,0.00030684,7]
[341495509,1730922676314,-802.32,0.00030684,2]
[341495510,1730922676324,-1976.19,0.00030684,2]
[341495511,1730922676333,-503.68661479,0.00030684,2]
[341495512,1730922676343,-500.0,0.00030684,2]
[341495513,1730922676353,-569.46,0.00030684,2]
[341495514,1730922676363,-894.15,0.00030684,2]
[341495515,1730922676373,-500.0,0.00030684,2]
[341495516,1730922676382,-246.255,0.00030684,7]
[341495517,1730922676391,-151.0,0.00030684,7]
[341495518,1730922676512,-293.793734,0.00030684,7]
[341495519,1730922676521,-293.793732,0.00030684,7]
[341495520,1730922676531,-824.163633,0.00030684,7]